[Event "TUR-ch Veterans 2019"]
[Site "Belek"]
[Date "2019.01.24"]
[Round "5.9"]
[White "Aysoy, Veysi"]
[Black "Sezgun, Yakup"]
[Result "1-0"]
[ECO "E61"]
[WhiteElo "1933"]
[BlackElo "1757"]
[Annotator "NA"]
[PlyCount "157"]
[EventDate "2019.01.20"]
[EventType "swiss"]
[EventCountry "TUR"]
[SourceTitle "playchess.com"]
[Source "ChessBase"]
[SourceQuality "1"]
[TimeControl "5400+30"]

1. c4 {[%emt 0:00:30]} Nf6 {[%emt 0:00:30]} 2. g3 {[%emt 0:00:30]} g6 {[%emt 0:00:00]} 3. Bg2 {[%emt 0:00:30]} Bg7 {[%emt 0:00:00]} 4. Nc3 {[%emt 0:00:30]} O-O {[%emt 0:00:00]} 5. d4 {[%emt 0:01:30]} Re8 {[%emt 0:01:00]} 6. Nf3 {[%emt 0:01:30]} d5 {[%emt 0:01:30]} 7. cxd5 {[%emt 0:03:30]} Nxd5 {[%emt 0:00:30]} 8. O-O {[%emt 0:03:30]} c5 {[%emt 0:05:30]} 9. Qb3 {[%emt 0:06:30]} Nxc3 $14 {[%emt 0:04:30]} 10. bxc3 {[%emt 0:01:30]} Nd7 {[%emt 0:06:30]} 11. Rd1 {[%emt 0:05:30]} Qb6 {[%emt 0:03:30]} 12. Qa4 {[%emt 0:02:30]} Nf6 {[%emt 0:07:30]} 13. Ne5 {[%emt 0:05:30]} Bf5 {[%emt 0:04:30]} 14. Nc4 {[%emt 0:07:30]} Qe6 {[%emt 0:11:30]} 15. Ne3 {[%emt 0:16:30]} Be4 {[%emt 0:04:30]} 16. Ba3 {[%emt 0:07:30]} Bxg2 {[%emt 0:02:30]} 17. Kxg2 {[%emt 0:00:30]} Bh6 {[%emt 0:08:30]} 18. Rd3 {[%emt 0:12:30]} cxd4 {[%emt 0:12:30]} 19. cxd4 {[%emt 0:01:30]} a6 {[%emt 0:03:30]} 20. Bc5 {[%emt 0:06:17]} Ne4 {[%emt 0:03:03]} 21. Qb4 {[%emt 0:02:53]} Nxc5 {[%emt 0:05:59]} 22. dxc5 {[%emt 0:01:34]} Bxe3 {[%emt 0:01:43]} 23. Rxe3 {[%emt 0:00:51]} Qd5+ {[%emt 0:00:22]} 24. Kg1 {[%emt 0:00:50]} Rac8 {[%emt 0:00:30]} 25. Rc1 {[%emt 0:01:08]} Rc7 {[%emt 0:03:17]} 26. a3 {[%emt 0:00:42]} Rec8 {[%emt 0:00:45]} 27. Rec3 {[%emt 0:00:32]} Qc6 {[%emt 0:01:04]} 28. e3 {[%emt 0:00:58]} Rd7 {[%emt 0:00:33]} 29. Rc4 {[%emt 0:02:36]} Rd5 {[%emt 0:02:24]} 30. e4 {[%emt 0:02:02]} Rd7 {[%emt 0:00:26]} 31. h4 {[%emt 0:01:08]} h5 {[%emt 0:00:24]} 32. a4 {[%emt 0:00:55]} Rcd8 {[%emt 0:00:33]} 33. Qb6 {[%emt 0:01:11]} Rc8 {[%emt 0:02:23]} 34. a5 {[%emt 0:00:38]} Kg7 {[%emt 0:00:33]} 35. Rb1 {[%emt 0:02:23]} Qf6 {[%emt 0:02:52]} 36. Qxf6+ {[%emt 0:01:09]} Kxf6 {[%emt 0:00:02]} 37. Rb6+ {[%emt 0:00:00]} e6 {[%emt 0:00:35]} 38. c6 {[%emt 0:00:13]} Rxc6 {[%emt 0:02:22]} 39. Rcxc6 {[%emt 0:00:07]} bxc6 {[%emt 0:00:00]} 40. Rxc6 {[%emt 0:00:27]} Ra7 {[%emt 0:00:04]} 41. Kg2 {[%emt 0:00:49]} Ke5 {[%emt 0:01:24]} 42. f3 {[%emt 0:01:01]} Kd4 {[%emt 0:00:26]} 43. Kf2 {[%emt 0:00:13]} Kd3 {[%emt 0:00:16]} 44. e5 {[%emt 0:00:37]} Rb7 {[%emt 0:00:45]} 45. Rd6+ {[%emt 0:00:27]} Kc4 {[%emt 0:00:12]} 46. Rxa6 {[%emt 0:00:12]} Kd5 {[%emt 0:00:57]} 47. f4 {[%emt 0:00:54]} Ke4 {[%emt 0:00:08]} 48. Rb6 {[%emt 0:00:00]} Ra7 {[%emt 0:00:55]} 49. a6 {[%emt 0:00:39]} Kd5 {[%emt 0:00:28]} 50. Ke3 {[%emt 0:01:10]} Kc5 {[%emt 0:00:03]} 51. Rd6 {[%emt 0:00:17]} Kb5 {[%emt 0:00:08]} 52. Kd4 {[%emt 0:00:34]} Rc7 {[%emt 0:00:39]} 53. Kd3 {[%emt 0:00:31]} Ra7 {[%emt 0:00:24]} 54. Kc3 {[%emt 0:00:47]} Rc7+ {[%emt 0:01:09]} 55. Kd3 {[%emt 0:00:40]} Ra7 {[%emt 0:00:06]} 56. Ke3 {[%emt 0:00:21]} Rc7 {[%emt 0:00:31]} 57. Kf3 {[%emt 0:00:18]} Rc3+ {[%emt 0:00:13]} 58. Kg2 {[%emt 0:00:14]} Rc7 {[%emt 0:00:28]} 59. Kh3 {[%emt 0:00:09]} Ka5 {[%emt 0:00:15]} 60. g4 {[%emt 0:01:11]} Rc3+ {[%emt 0:00:34]} 61. Kg2 {[%emt 0:00:01]} Rc7 {[%emt 0:01:11]} 62. gxh5 {[%emt 0:00:09]} gxh5 {[%emt 0:00:02]} 63. f5 {[%emt 0:00:52]} exf5 {[%emt 0:00:26]} 64. Kf3 {[%emt 0:00:17]} Kb5 {[%emt 0:00:51]} 65. Kf4 {[%emt 0:00:10]} Rc4+ {[%emt 0:00:17]} 66. Kxf5 {[%emt 0:01:05]} Rxh4 {[%emt 0:00:15]} 67. a7 {[%emt 0:00:18]} Ra4 {[%emt 0:00:18]} 68. Rd7 {[%emt 0:00:05]} h4 {[%emt 0:00:46]} 69. Rxf7 {[%emt 0:00:09]} Kc6 {[%emt 0:01:04]} 70. Rh7 {[%emt 0:02:05]} Kd5 {[%emt 0:00:37]} 71. e6 {[%emt 0:00:39]} Kd6 {[%emt 0:00:41]} 72. Rd7+ {[%emt 0:00:02]} Kc6 {[%emt 0:00:06]} 73. Kf6 {[%emt 0:00:19]} h3 {[%emt 0:00:27]} 74. Rh7 {[%emt 0:00:36]} Rf4+ {[%emt 0:00:58]} 75. Ke5 {[%emt 0:00:16]} Ra4 {[%emt 0:00:24]} 76. e7 {[%emt 0:01:07]} Kd7 {[%emt 0:00:28]} 77. e8=Q+ {[%emt 0:00:17]} Kxe8 {[%emt 0:01:10]} 78. Rh8+ {[%emt 0:00:30]} Kd7 {[%emt 0:00:30]} 79. Rh7+ {[%emt 0:00:30]} 1-0

[Event "TUR-ch Veterans 2019"]
[Site "Belek"]
[Date "2019.01.24"]
[Round "5.11"]
[White "Sedef, Emin"]
[Black "Taskiran, Erol"]
[Result "1/2-1/2"]
[ECO "D03"]
[WhiteElo "1632"]
[BlackElo "1758"]
[Annotator "NA"]
[PlyCount "95"]
[EventDate "2019.01.20"]
[EventType "swiss"]
[EventCountry "TUR"]
[SourceTitle "playchess.com"]
[Source "ChessBase"]
[SourceQuality "1"]
[TimeControl "5400+30"]

1. d4 {[%emt 0:00:30]} Nf6 {[%emt 0:00:30]} 2. Nf3 {[%emt 0:00:30]} d5 {[%emt 0:01:30]} 3. Bg5 {[%emt 0:00:00]} e6 {[%emt 0:01:30]} 4. Nbd2 {[%emt 0:01:00]} c5 {[%emt 0:01:30]} 5. c3 {[%emt 0:00:30]} Be7 {[%emt 0:00:30]} 6. e3 {[%emt 0:00:00]} O-O {[%emt 0:00:30]} 7. Bd3 {[%emt 0:00:00]} Nbd7 {[%emt 0:03:30]} 8. O-O {[%emt 0:00:30]} h6 {[%emt 0:02:30]} 9. Bh4 {[%emt 0:01:30]} Nh7 {[%emt 0:02:30]} 10. Bxe7 {[%emt 0:06:30]} Qxe7 {[%emt 0:00:30]} 11. Ne5 {[%emt 0:01:30]} Nxe5 {[%emt 0:02:30]} 12. dxe5 {[%emt 0:00:30]} b6 {[%emt 0:02:30]} 13. f4 {[%emt 0:00:30]} f5 {[%emt 0:00:30]} 14. c4 {[%emt 0:04:30]} Bb7 {[%emt 0:00:30]} 15. cxd5 {[%emt 0:00:30]} Bxd5 {[%emt 0:00:30]} 16. e4 {[%emt 0:00:30]} fxe4 {[%emt 0:01:30]} 17. Bxe4 {[%emt 0:01:30]} Rad8 {[%emt 0:01:30]} 18. Qc2 {[%emt 0:00:30]} Bxe4 {[%emt 0:00:30]} 19. Nxe4 {[%emt 0:00:30]} Rd4 {[%emt 0:01:30]} 20. g3 {[%emt 0:00:30]} Qb7 {[%emt 0:01:30]} 21. Nd6 {[%emt 0:00:30]} Qd5 {[%emt 0:05:30]} 22. b3 {[%emt 0:02:30]} Rd8 {[%emt 0:03:30]} 23. Rad1 {[%emt 0:01:30]} Nf8 {[%emt 0:06:30]} 24. Rxd4 {[%emt 0:00:30]} Qxd4+ {[%emt 0:00:00]} 25. Kg2 {[%emt 0:00:30]} Qd5+ {[%emt 0:01:00]} 26. Kf2 {[%emt 0:06:30]} Qd4+ {[%emt 0:01:30]} 27. Ke2 {[%emt 0:02:30]} Qd5 {[%emt 0:00:30]} 28. Rd1 {[%emt 0:01:30]} Qg2+ {[%emt 0:07:30]} 29. Kd3 {[%emt 0:00:30]} Qd5+ 30. Kc3 {[%emt 0:00:30]} Qc6 {[%emt 0:05:00]} 31. Kb2 {[%emt 0:03:30]} a5 {[%emt 0:01:30]} 32. a4 {[%emt 0:00:30]} Rd7 {[%emt 0:00:30]} 33. Rd2 {[%emt 0:00:30]} Nh7 {[%emt 0:02:30]} 34. h4 {[%emt 0:03:30]} Nf8 {[%emt 0:03:30]} 35. Qc4 {[%emt 0:04:30]} Qf3 {[%emt 0:01:30]} 36. f5 {[%emt 0:00:30]} Qxg3 {[%emt 0:01:30]} 37. Re2 {[%emt 0:00:30]} Qf3 {[%emt 0:06:30]} 38. fxe6 {[%emt 0:01:30]} Re7 {[%emt 0:01:30]} 39. Nc8 {[%emt 0:02:30]} Rxe6 {[%emt 0:02:30]} 40. Nxb6 {[%emt 0:02:30]} Kh8 {[%emt 0:00:30]} 41. Nc8 {[%emt 0:09:30]} Re8 {[%emt 0:05:30]} 42. Nd6 {[%emt 0:01:30]} Rb8 {[%emt 0:02:30]} 43. Nb5 {[%emt 0:04:30]} Ne6 {[%emt 0:00:30]} 44. Qe4 {[%emt 0:01:30]} Qh3 {[%emt 0:00:30]} 45. Re3 {[%emt 0:01:30]} Qh2+ {[%emt 0:02:30]} 46. Re2 {[%emt 0:10:30]} Qh3 {[%emt 0:01:21]} 47. Re3 {[%emt 0:04:30]} Qh2+ {[%emt 0:00:36]} 48. Re2 {[%emt 0:03:57]} 1/2-1/2

[Event "TUR-ch Veterans 2019"]
[Site "Belek"]
[Date "2019.01.24"]
[Round "5.12"]
[White "Yalciner, Suleyman"]
[Black "Unver, Ibrahim Kaya"]
[Result "1-0"]
[ECO "B30"]
[WhiteElo "1491"]
[BlackElo "1379"]
[Annotator "NA"]
[PlyCount "51"]
[EventDate "2019.01.20"]
[EventType "swiss"]
[EventCountry "TUR"]
[SourceTitle "playchess.com"]
[Source "ChessBase"]
[SourceQuality "1"]
[TimeControl "5400+30"]

1. e4 {[%emt 0:00:30]} c5 {[%emt 0:00:30]} 2. Nf3 {[%emt 0:00:00]} d6 {[%emt 0:00:00]} 3. Bc4 {[%emt 0:00:00]} e6 {[%emt 0:01:00]} 4. O-O {[%emt 0:00:30]} Nc6 {[%emt 0:00:30]} 5. c3 {[%emt 0:00:00]} Nf6 {[%emt 0:00:30]} 6. Re1 {[%emt 0:01:00]} Qc7 {[%emt 0:00:30]} 7. Bb3 {[%emt 0:00:30]} Be7 {[%emt 0:00:30]} 8. d4 {[%emt 0:00:30]} cxd4 {[%emt 0:01:30]} 9. cxd4 {[%emt 0:00:30]} O-O {[%emt 0:00:30]} 10. Nc3 {[%emt 0:00:00]} a6 {[%emt 0:01:30]} 11. h3 {[%emt 0:00:00]} Rd8 {[%emt 0:03:30]} 12. Bg5 {[%emt 0:01:30]} b5 {[%emt 0:07:30]} 13. Rc1 {[%emt 0:00:30]} Qd7 {[%emt 0:03:30]} 14. Qe2 {[%emt 0:01:30]} Bb7 {[%emt 0:02:30]} 15. d5 {[%emt 0:01:30]} Na5 {[%emt 0:02:30]} 16. Bc2 {[%emt 0:03:30]} e5 {[%emt 0:04:30]} 17. b3 {[%emt 0:04:30]} Rac8 {[%emt 0:02:30]} 18. Nd1 {[%emt 0:04:30]} Ba8 {[%emt 0:04:30]} 19. Ne3 {[%emt 0:00:30]} g6 {[%emt 0:00:30]} 20. Nh2 {[%emt 0:05:30]} Nh5 {[%emt 0:01:30]} 21. Bh6 {[%emt 0:06:30]} Nf6 {[%emt 0:05:30]} 22. Qf3 {[%emt 0:04:30]} Re8 {[%emt 0:02:30]} 23. Neg4 {[%emt 0:18:30]} Nxg4 {[%emt 0:02:30]} 24. Nxg4 {[%emt 0:00:30]} Qd8 {[%emt 0:00:30]} 25. Bd2 {[%emt 0:02:30]} Nb7 {[%emt 0:00:30]} 26. Nh6+ {[%emt 0:00:30]} 1-0

[Event "TUR-ch Veterans 2019"]
[Site "Belek"]
[Date "2019.01.24"]
[Round "5.13"]
[White "Buyukgokcesu, Tahir Sami"]
[Black "Yuksel, Mustafa"]
[Result "1/2-1/2"]
[ECO "A08"]
[WhiteElo "1557"]
[BlackElo "2031"]
[Annotator "NA"]
[PlyCount "33"]
[EventDate "2019.01.20"]
[EventType "swiss"]
[EventCountry "TUR"]
[SourceTitle "playchess.com"]
[Source "ChessBase"]
[SourceQuality "1"]
[TimeControl "5400+30"]

1. e4 {[%emt 0:00:30]} e6 {[%emt 0:00:30]} 2. d3 {[%emt 0:00:30]} d5 {[%emt 0:00:00]} 3. Nd2 {[%emt 0:00:00]} c5 {[%emt 0:00:00]} 4. Ngf3 {[%emt 0:00:00]} Nc6 {[%emt 0:00:00]} 5. g3 {[%emt 0:00:30]} g6 {[%emt 0:00:00]} 6. Bg2 {[%emt 0:00:30]} Bg7 {[%emt 0:00:30]} 7. O-O {[%emt 0:00:30]} Nge7 {[%emt 0:00:00]} 8. c3 {[%emt 0:04:30]} b6 {[%emt 0:00:00]} 9. Re1 {[%emt 0:00:30]} a5 {[%emt 0:00:30]} 10. a4 {[%emt 0:05:30]} Ra7 {[%emt 0:02:30]} 11. Qc2 {[%emt 0:02:30]} h6 {[%emt 0:01:30]} 12. Nf1 {[%emt 0:03:30]} O-O {[%emt 0:00:30]} 13. h4 $15 {[%emt 0:01:30]} d4 {[%emt 0:00:00]} 14. N1h2 {[%emt 0:04:30]} e5 {[%emt 0:00:00]} 15. h5 {[%emt 0:04:30]} g5 {[%emt 0:04:30]} 16. g4 {[%emt 0:01:30]} Be6 {[%emt 0:00:30]} 17. c4 {[%emt 0:00:30]} 1/2-1/2

[Event "TUR-ch Veterans 2019"]
[Site "Belek"]
[Date "2019.01.24"]
[Round "5.14"]
[White "Muratoglu, Salih"]
[Black "Alkan, Sukru"]
[Result "1/2-1/2"]
[ECO "B33"]
[WhiteElo "1950"]
[BlackElo "1484"]
[Annotator "NA"]
[PlyCount "105"]
[EventDate "2019.01.20"]
[EventType "swiss"]
[EventCountry "TUR"]
[SourceTitle "playchess.com"]
[Source "ChessBase"]
[SourceQuality "1"]
[TimeControl "5400+30"]

1. e4 {[%emt 0:00:30]} c5 {[%emt 0:00:30]} 2. Nf3 {[%emt 0:00:30]} Nc6 {[%emt 0:00:30]} 3. d4 {[%emt 0:00:30]} cxd4 {[%emt 0:00:00]} 4. Nxd4 {[%emt 0:00:00]} Nf6 {[%emt 0:00:00]} 5. Nc3 {[%emt 0:00:00]} e5 {[%emt 0:00:00]} 6. Nb3 {[%emt 0:00:30]} Bb4 {[%emt 0:00:00]} 7. Bd3 {[%emt 0:00:30]} d5 {[%emt 0:00:30]} 8. exd5 {[%emt 0:02:30]} Nxd5 {[%emt 0:00:00]} 9. Bd2 {[%emt 0:01:30]} Be6 {[%emt 0:04:00] B33: Sicilian: Pelikan and Sveshnikov Variations} (9... Nxc3 10. bxc3 Be7 11. Qh5 g6 12. Qe2 O-O 13. h4 Re8 14. h5 e4 15. hxg6 hxg6 16. Bxe4 Bf6 17. f3 Bf5 18. O-O-O Qe7 {1-0 (30) Jobava,B (2669)-Bykhovsky,A (2459) Budva 2009}) 10. Qe2 $146 {[%emt 0:03:30]} ({Predecessor:} 10. O-O Nxc3 11. bxc3 Be7 12. Qe2 O-O 13. Rad1 Qc7 14. f4 Bxb3 15. cxb3 exf4 16. Bxf4 Qb6+ 17. Kh1 {0-1 (30) Santillan,L (2117)-Malamud,L (2120) Villaguay 2016}) 10... O-O {[%emt 0:02:30]} 11. O-O-O {[%emt 0:01:30]} Nxc3 {[%emt 0:02:30]} 12. Bxc3 {[%emt 0:00:30]} Bxc3 {[%emt 0:00:30]} 13. Bxh7+ {[%emt 0:00:30]} Kxh7 {[%emt 0:00:00]} 14. Rxd8 {[%emt 0:00:30]} Bxb2+ {[%emt 0:00:00]} 15. Kxb2 {[%emt 0:00:00]} Rfxd8 {[%emt 0:00:30]} 16. f4 {[%emt 0:02:00]} (16. Nc5 $18) 16... f6 {[%emt 0:01:30]} (16... Kg8 $16) 17. fxe5 {[%emt 0:00:30]} Nxe5 {[%emt 0:00:30]} 18. Rf1 {[%emt 0:06:30]} Kg8 {[%emt 0:00:30]} 19. Rf4 {[%emt 0:01:30]} Rac8 {[%emt 0:00:30]} 20. g4 {[%emt 0:07:30]} Bf7 {[%emt 0:05:30]} 21. Rd4 {[%emt 0:05:30]} Nc4+ {[%emt 0:02:30]} 22. Kc1 {[%emt 0:01:30]} Re8 {[%emt 0:00:30]} 23. Re4 {[%emt 0:01:30]} Ne5 {[%emt 0:04:30]} 24. Re3 {[%emt 0:07:30]} Rc4 {[%emt 0:01:30]} 25. g5 {[%emt 0:01:30]} Rec8 {[%emt 0:00:30]} 26. gxf6 $16 {[%emt 0:00:30]} gxf6 {[%emt 0:01:30]} 27. Kb2 {[%emt 0:03:30]} Rf4 {[%emt 0:09:30]} 28. Rg3+ {[%emt 0:05:30]} Kf8 {[%emt 0:01:30]} 29. Nd2 {[%emt 0:02:30]} Rb4+ {[%emt 0:01:30]} 30. Kc1 {[%emt 0:01:30]} Rb6 {[%emt 0:01:30]} 31. Qe3 {[%emt 0:03:30]} Rbc6 {[%emt 0:00:30]} 32. Qa3+ {[%emt 0:00:30]} Ke8 {[%emt 0:00:30]} 33. Qa4 {[%emt 0:01:30]} Kf8 {[%emt 0:00:30]} 34. Ne4 {[%emt 0:03:30]} Rxc2+ {[%emt 0:00:30]} 35. Qxc2 {[%emt 0:00:30]} Rxc2+ {[%emt 0:00:00]} 36. Kxc2 {[%emt 0:00:30]} Bg6 {[%emt 0:00:00]} 37. Re3 {[%emt 0:00:00]} Nc4 {[%emt 0:00:30]} 38. Re1 {[%emt 0:05:00]} Nd6 {[%emt 0:00:30]} 39. Kd3 {[%emt 0:01:30]} Bxe4+ {[%emt 0:01:30]} 40. Kd4 {[%emt 0:00:30]} Bc6 {[%emt 0:00:30]} 41. Rf1 {[%emt 0:01:30]} Kg7 {[%emt 0:00:30]} 42. Ke3 {[%emt 0:00:30]} Kg6 {[%emt 0:00:00]} 43. Kf4 {[%emt 0:00:30]} Ne8 {[%emt 0:01:00]} 44. Rg1+ {[%emt 0:00:30]} Kf7 {[%emt 0:00:30]} 45. h4 {[%emt 0:00:30]} Ng7 {[%emt 0:00:30]} 46. Rd1 {[%emt 0:00:30]} Kg6 {[%emt 0:01:30]} 47. Rg1+ {[%emt 0:01:30]} Kf7 {[%emt 0:01:30]} 48. Rd1 {[%emt 0:00:00]} Ba4 {[%emt 0:07:30]} 49. Rd2 {[%emt 0:02:00]} Bb5 {[%emt 0:01:30]} 50. Rd5 {[%emt 0:00:30]} Bc6 {[%emt 0:00:30]} 51. Rd1 {[%emt 0:00:30]} f5 {[%emt 0:01:30]} 52. Ke5 {[%emt 0:00:30]} Be4 {[%emt 0:00:30]} 53. Rd6 {[%emt 0:02:30]} 1/2-1/2

[Event "TUR-ch Veterans 2019"]
[Site "Belek"]
[Date "2019.01.24"]
[Round "5.15"]
[White "Topaloglu, Hayati"]
[Black "Suzan, Mehmet"]
[Result "1-0"]
[ECO "B12"]
[WhiteElo "1740"]
[BlackElo "1501"]
[Annotator "NA"]
[PlyCount "28"]
[EventDate "2019.01.20"]
[EventType "swiss"]
[EventCountry "TUR"]
[SourceTitle "playchess.com"]
[Source "ChessBase"]
[SourceQuality "1"]
[TimeControl "5400+30"]

1. e4 {[%emt 0:00:30]} d6 {[%emt 0:00:30]} 2. d4 {[%emt 0:00:30]} c6 {[%emt 0:00:30]} 3. Nf3 {[%emt 0:00:30]} Bg4 {[%emt 0:00:30]} 4. Bc4 {[%emt 0:03:30]} e6 {[%emt 0:00:30]} 5. O-O {[%emt 0:02:30]} h6 {[%emt 0:01:30]} 6. Be3 {[%emt 0:01:30]} Be7 {[%emt 0:00:30]} 7. Nbd2 {[%emt 0:00:30]} Nf6 {[%emt 0:01:30]} 8. c3 {[%emt 0:03:30]} Nfd7 {[%emt 0:00:30]} 9. Bb3 {[%emt 0:00:30]} O-O {[%emt 0:00:30]} 10. h3 {[%emt 0:01:30]} Bh5 {[%emt 0:00:30]} 11. g4 {[%emt 0:01:30]} Bg6 {[%emt 0:00:30]} 12. Nh2 {[%emt 0:00:30]} e5 {[%emt 0:02:30]} 13. f4 {[%emt 0:01:30]} exf4 {[%emt 0:00:30]} 14. Bxf4 {[%emt 0:00:30]} c5 {[%emt 0:42:30]} 1-0

[Event "TUR-ch Veterans 2019"]
[Site "Belek"]
[Date "2019.01.24"]
[Round "5.16"]
[White "Saglam, Sami"]
[Black "Akinci, Ahmet"]
[Result "0-1"]
[ECO "C50"]
[WhiteElo "1424"]
[BlackElo "1402"]
[Annotator "NA"]
[PlyCount "68"]
[EventDate "2019.01.20"]
[EventType "swiss"]
[EventCountry "TUR"]
[SourceTitle "playchess.com"]
[Source "ChessBase"]
[SourceQuality "1"]
[TimeControl "5400+30"]

1. e4 {[%emt 0:00:30]} e5 {[%emt 0:00:30]} 2. Nf3 {[%emt 0:00:00]} Nc6 {[%emt 0:00:30]} 3. Bc4 {[%emt 0:01:00]} Bc5 {[%emt 0:00:30]} 4. Nc3 {[%emt 0:00:30]} Nf6 {[%emt 0:00:30]} 5. d3 {[%emt 0:00:30]} h6 {[%emt 0:00:30]} 6. h3 {[%emt 0:01:30]} d6 {[%emt 0:01:30]} 7. a3 {[%emt 0:02:30]} a6 {[%emt 0:00:30]} 8. Qe2 {[%emt 0:00:30]} Nd4 {[%emt 0:02:30]} 9. Nxd4 {[%emt 0:01:30]} Bxd4 {[%emt 0:00:30]} 10. Nd5 {[%emt 0:01:30]} c6 {[%emt 0:01:30]} 11. Nxf6+ {[%emt 0:02:30]} Qxf6 {[%emt 0:01:30]} 12. c3 {[%emt 0:00:30]} Ba7 {[%emt 0:00:00]} 13. Be3 {[%emt 0:01:30]} Qg6 {[%emt 0:01:00]} 14. Qf3 {[%emt 0:00:00]} Bxe3 {[%emt 0:00:30]} 15. fxe3 {[%emt 0:02:00]} O-O {[%emt 0:00:30]} 16. O-O-O {[%emt 0:00:30]} Be6 {[%emt 0:00:30]} 17. Bxe6 {[%emt 0:01:30]} Qxe6 {[%emt 0:01:30]} 18. g4 {[%emt 0:00:30]} Qa2 {[%emt 0:00:30]} 19. h4 {[%emt 0:02:30]} f6 {[%emt 0:05:30]} 20. Qf5 {[%emt 0:01:30]} b5 {[%emt 0:01:30]} 21. Kc2 {[%emt 0:02:30]} b4 {[%emt 0:04:30]} 22. cxb4 {[%emt 0:03:30]} c5 {[%emt 0:01:30]} 23. Ra1 {[%emt 0:00:30]} Qf7 {[%emt 0:00:00]} 24. bxc5 {[%emt 0:00:30]} Rab8 {[%emt 0:03:00]} 25. Kb1 {[%emt 0:03:30]} Qb3 {[%emt 0:00:30]} 26. Ra2 {[%emt 0:00:30]} Qxd3+ {[%emt 0:07:30]} 27. Ka1 {[%emt 0:00:30]} dxc5 {[%emt 0:00:30]} 28. Qf3 {[%emt 0:04:30]} Rfd8 {[%emt 0:02:30]} 29. a4 {[%emt 0:00:30]} Rb3 {[%emt 0:01:30]} 30. g5 {[%emt 0:00:30]} Rdb8 {[%emt 0:03:30]} 31. Rb1 {[%emt 0:07:30]} c4 {[%emt 0:07:30]} 32. gxf6 {[%emt 0:01:30]} c3 {[%emt 0:00:30]} 33. Qg4 {[%emt 0:03:30]} cxb2+ {[%emt 0:00:30]} 34. Raxb2 {[%emt 0:04:30]} Ra3+ {[%emt 0:01:30]} 0-1

[Event "TUR-ch Veterans 2019"]
[Site "Belek"]
[Date "2019.01.24"]
[Round "5.17"]
[White "Cicek, Cemil"]
[Black "Atas, Remzi"]
[Result "1-0"]
[ECO "E12"]
[WhiteElo "1999"]
[BlackElo "1477"]
[Annotator "NA"]
[PlyCount "106"]
[EventDate "2019.01.20"]
[EventType "swiss"]
[EventCountry "TUR"]
[SourceTitle "playchess.com"]
[Source "ChessBase"]
[SourceQuality "1"]
[TimeControl "5400+30"]

1. d4 {[%emt 0:00:30]} Nf6 {[%emt 0:00:30]} 2. Nf3 {[%emt 0:00:00]} e6 {[%emt 0:00:30]} 3. Bg5 {[%emt 0:00:00]} c5 {[%emt 0:01:30]} 4. e3 {[%emt 0:00:30]} b6 {[%emt 0:01:30]} 5. c4 {[%emt 0:00:30]} Bb7 {[%emt 0:00:30]} 6. Nc3 {[%emt 0:00:30]} Be7 {[%emt 0:03:30]} 7. Be2 {[%emt 0:01:30]} d6 {[%emt 0:00:30] E12: Queen's Indian: Unusual White 4th moves, 4 a3, 4 Nc3 Bb7 5 a3 and 4 Nc3 Bb7} (7... O-O 8. O-O h6 9. Bh4 Nc6 10. Bg3 cxd4 11. Nxd4 d6 12. Bf3 Qd7 13. Nxc6 Bxc6 14. b3 a6 15. Bxc6 Qxc6 {½-½ (69) Wang,Y (2739)-Ivanchuk,V (2779) Nice 2009}) 8. O-O {[%emt 0:00:00]} h6 {[%emt 0:00:30]} 9. Bh4 {[%emt 0:00:00]} O-O {[%emt 0:00:30]} 10. a3 {[%emt 0:01:30]} Nbd7 {[%emt 0:04:30]} 11. b4 $146 {[%emt 0:02:30]} ({Predecessor:} 11. h3 a6 12. Bg3 Rc8 13. Nd2 {0-1 (55) Draskovic,D (2154)-Tosic,M (2422) Vrnjacka Banja 2007}) 11... Ne4 {[%emt 0:01:30]} 12. Nxe4 {[%emt 0:01:30]} Bxe4 {[%emt 0:00:00]} 13. Bg3 {[%emt 0:00:30]} Nf6 {[%emt 0:01:00]} 14. h3 {[%emt 0:00:30]} Bb7 {[%emt 0:02:30]} 15. Qc2 {[%emt 0:00:30]} Rc8 {[%emt 0:00:30]} 16. Qb3 {[%emt 0:00:30]} Ne4 {[%emt 0:01:30]} 17. Bh2 {[%emt 0:00:30]} Ba8 {[%emt 0:01:30]} 18. Rfd1 {[%emt 0:00:30]} Bf6 {[%emt 0:02:30]} 19. Rac1 {[%emt 0:00:30]} Qe7 {[%emt 0:00:30]} 20. b5 $15 {[%emt 0:02:30]} Rfd8 {[%emt 0:01:30]} 21. a4 {[%emt 0:00:30]} Bh4 {[%emt 0:00:30]} 22. Rf1 {[%emt 0:02:30]} Bf6 {[%emt 0:03:30]} 23. Bd3 {[%emt 0:02:30]} Qb7 {[%emt 0:00:30]} 24. Rfd1 {[%emt 0:02:30]} cxd4 {[%emt 0:04:30]} 25. exd4 {[%emt 0:01:30]} Ng5 {[%emt 0:01:30]} 26. Be2 {[%emt 0:00:30]} Qe4 {[%emt 0:01:30]} 27. Qe3 {[%emt 0:00:30]} Qb7 {[%emt 0:04:30]} 28. Ne1 {[%emt 0:01:30]} Qe4 {[%emt 0:09:30]} 29. Bd3 {[%emt 0:04:30]} Qxe3 {[%emt 0:01:30]} 30. fxe3 {[%emt 0:00:30]} e5 {[%emt 0:00:30]} 31. Bf5 {[%emt 0:01:30]} Rb8 {[%emt 0:02:30]} 32. d5 {[%emt 0:04:30]} g6 {[%emt 0:00:30]} 33. Bd3 {[%emt 0:00:30]} Rbc8 {[%emt 0:02:30]} 34. e4 {[%emt 0:00:30]} Rc7 {[%emt 0:00:30]} 35. Ra1 {[%emt 0:00:30]} Bg7 {[%emt 0:01:30]} 36. Nf3 {[%emt 0:01:30]} f5 {[%emt 0:00:30]} 37. Nxg5 {[%emt 0:04:30]} hxg5 {[%emt 0:00:30]} 38. Re1 {[%emt 0:00:30]} f4 {[%emt 0:07:30]} 39. a5 {[%emt 0:02:30]} Rb8 {[%emt 0:03:30]} 40. axb6 {[%emt 0:00:30]} axb6 {[%emt 0:00:30]} 41. Ra6 {[%emt 0:00:30]} Bb7 {[%emt 0:05:30]} 42. Rxb6 {[%emt 0:01:30]} Rd7 {[%emt 0:02:30]} 43. Ra1 {[%emt 0:00:30]} Bf6 {[%emt 0:00:30]} 44. c5 {[%emt 0:00:30]} Bd8 {[%emt 0:02:30]} 45. Rxd6 {[%emt 0:04:30]} Rxd6 {[%emt 0:00:00]} 46. cxd6 {[%emt 0:00:30]} Bb6+ {[%emt 0:00:00]} 47. Kf1 {[%emt 0:00:00]} Bc5 {[%emt 0:00:30]} 48. d7 {[%emt 0:01:00]} Rd8 {[%emt 0:00:30]} 49. Bg1 {[%emt 0:00:30]} Bxg1 {[%emt 0:00:30]} 50. Kxg1 {[%emt 0:00:30]} Rxd7 {[%emt 0:00:30]} 51. Ra7 {[%emt 0:00:30]} Kf8 {[%emt 0:01:30]} 52. b6 {[%emt 0:00:30]} Ke8 {[%emt 0:00:30]} 53. Bb5 {[%emt 0:00:30]} Ke7 {[%emt 0:03:30]} 1-0